[Event "DVM U14 2021"]
[Site "Willingen"]
[Date "2022.08.15"]
[Round "6"]
[White "Schwan, Aaron"]
[Black "Bongardt, Livius"]
[Result "1-0"]
[ECO "C55"]
[WhiteElo "1672"]
[BlackElo "1756"]
[Annotator "NA RC"]
[PlyCount "79"]
[EventDate "2022.08.12"]
[EventType "team-tourn"]
[EventRounds "7"]
[EventCountry "GER"]
[SourceTitle "playchess.com"]
[Source "ChessBase"]
[SourceQuality "1"]
[TimeControl "40/5400+30:1800+30"]

1. e4 {[%emt 0:00:04]} e5 {[%emt 0:00:00]} 2. Nf3 {[%emt 0:00:04]} Nc6 {[%emt 0:00:00]} 3. Bc4 {[%emt 0:00:05]} Nf6 {[%emt 0:00:00]} 4. d3 {[%emt 0:00:11]} Be7 {[%emt 0:01:24]} 5. c3 {[%emt 0:00:54]} O-O {[%emt 0:00:28]} 6. Nbd2 {[%emt 0:03:27]} d5 {[%emt 0:01:14]} 7. Bb3 {[%emt 0:14:37]} a6 {[%emt 0:00:54]} 8. Qe2 {[%emt 0:07:16]} Re8 {[%emt 0:02:04]} 9. Nf1 {[%emt 0:02:19]} h6 {[%emt 0:00:44]} 10. Ng3 {[%emt 0:06:22]} Be6 {[%emt 0:04:34]} 11. O-O {[%emt 0:08:05]} Bf8 {[%emt 0:03:09]} 12. h3 {[%emt 0:01:52]} g6 {[%emt 0:16:16]} 13. Qc2 {[%emt 0:17:08]} Bg7 {[%emt 0:01:56]} 14. Ne2 {[%emt 0:18:33]} dxe4 {[%emt 0:00:13]} 15. dxe4 {[%emt 0:00:32]} Qe7 {[%emt 0:03:46]} 16. g4 {[%emt 0:04:25]} h5 {[%emt 0:06:32]} 17. g5 {[%emt 0:00:55]} Bxh3 {[%emt 0:00:42]} 18. gxf6 {[%emt 0:00:15]} Qxf6 {[%emt 0:01:00]} 19. Ng5 {[%emt 0:07:48]} Bxf1 {[%emt 0:00:42]} 20. Bxf7+ {[%emt 0:00:38]} Kh8 {[%emt 0:00:44]} 21. Bxe8 {[%emt 0:03:41]} Rxe8 {[%emt 0:00:25]} 22. Kxf1 {[%emt 0:00:45]} Bh6 {[%emt 0:00:34]} 23. Nf7+ {[%emt 0:00:05]} Qxf7 {[%emt 0:00:14]} 24. Bxh6 {[%emt 0:00:16]} Qf3 {[%emt 0:02:17]} 25. Rd1 {[%emt 0:01:34]} Qh3+ {[%emt 0:01:17]} 26. Ke1 {[%emt 0:01:05]} Qh1+ {[%emt 0:00:06]} 27. Kd2 {[%emt 0:00:21]} Rd8+ {[%emt 0:00:02]} 28. Kc1 {[%emt 0:00:41]} Qh4 {[%emt 0:00:43]} 29. Rxd8+ {[%emt 0:00:25]} Nxd8 {[%emt 0:00:25]} 30. Qd2 {[%emt 0:00:32]} Nf7 {[%emt 0:01:37]} 31. Ng3 {[%emt 0:00:34]} g5 {[%emt 0:00:34]} 32. Bf8 {[%emt 0:00:26]} Qg4 {[%emt 0:04:07]} 33. Qe2 {[%emt 0:00:25]} Qf4+ {[%emt 0:01:34]} 34. Qe3 {[%emt 0:00:34]} Qxe3+ {[%emt 0:00:03]} 35. fxe3 {[%emt 0:00:23]} h4 {[%emt 0:02:17]} 36. Nf5 {[%emt 0:00:25]} Kh7 {[%emt 0:01:15]} 37. Kd1 {[%emt 0:00:44]} h3 {[%emt 0:01:34]} 38. Ke2 {[%emt 0:00:24]} h2 {[%emt 0:00:02]} 39. Ng3 {[%emt 0:00:37]} g4 {[%emt 0:01:07]} 40. Be7 {[%emt 2:56:59]} 1-0

[Event "DVM U14 2021"]
[Site "Willingen"]
[Date "2022.08.15"]
[Round "6"]
[White "Trenz, Finn"]
[Black "Ehrig, Leon Chris"]
[Result "0-1"]
[ECO "B02"]
[WhiteElo "1667"]
[BlackElo "1832"]
[Annotator "NA RC"]
[PlyCount "62"]
[EventDate "2022.08.12"]
[EventType "team-tourn"]
[EventRounds "7"]
[EventCountry "GER"]
[SourceTitle "playchess.com"]
[Source "ChessBase"]
[SourceQuality "1"]
[TimeControl "40/5400+30:1800+30"]

1. e4 {[%emt 0:00:02]} Nf6 {[%emt 0:00:55]} 2. Nc3 {[%emt 0:00:07]} d5 {[%emt 0:01:08]} 3. exd5 {[%emt 0:00:07]} Nxd5 {[%emt 0:02:13]} 4. Nxd5 {[%emt 0:00:05]} Qxd5 {[%emt 0:02:03]} 5. d4 {[%emt 0:02:17]} Nc6 {[%emt 0:02:49]} 6. c3 $15 {[%emt 0:02:36]} (6. Be3 $11) 6... e5 {[%emt 0:06:00]} 7. dxe5 {[%emt 0:00:20]} Qxd1+ {[%emt 0:00:05]} 8. Kxd1 {[%emt 0:00:12]} Nxe5 {[%emt 0:06:36]} 9. Bb5+ {[%emt 0:00:50]} c6 {[%emt 0:00:44]} 10. Ba4 {[%emt 0:01:41]} (10. Be2 $17) 10... Bc5 {[%emt 0:04:02]} 11. Ke2 {[%emt 0:05:31]} Bf5 {[%emt 0:02:34]} 12. Be3 {[%emt 0:00:52]} Bxe3 {[%emt 0:00:10]} 13. fxe3 {[%emt 0:00:31]} O-O-O {[%emt 0:00:46]} 14. Nf3 {[%emt 0:01:48]} Bd3+ {[%emt 0:11:17]} 15. Ke1 {[%emt 0:18:36]} Rhe8 {[%emt 0:01:27]} 16. Nxe5 {[%emt 0:00:13]} Rxe5 {[%emt 0:02:20]} 17. Kf2 {[%emt 0:01:04]} Rf5+ {[%emt 0:16:59]} 18. Kg3 {[%emt 0:01:06]} Rd6 {[%emt 0:07:20]} 19. Bd1 {[%emt 0:03:56]} Rg6+ {[%emt 0:04:05]} 20. Kh4 {[%emt 0:24:52]} Rf2 {[%emt 0:08:54]} 21. g4 {[%emt 0:01:03]} Be4 {[%emt 0:04:22]} 22. Kg3 {[%emt 0:01:33]} Rxb2 {[%emt 0:03:31]} 23. Rg1 {[%emt 0:03:09]} Rf6 {[%emt 0:01:36]} 24. h3 {[%emt 0:01:04]} g5 {[%emt 0:01:16]} 25. h4 {[%emt 0:00:41]} h6 {[%emt 0:01:08]} 26. h5 {[%emt 0:00:44]} Rff2 {[%emt 0:00:27]} 27. a4 {[%emt 0:00:25]} a5 {[%emt 0:01:31]} 28. Ra3 {[%emt 0:02:30]} Kc7 {[%emt 0:02:24]} 29. Rb3 {[%emt 0:00:31]} Rg2+ {[%emt 0:00:07]} 30. Rxg2 {[%emt 0:00:04]} Rxg2+ {[%emt 0:00:05]} 31. Kh3 {[%emt 0:00:06]} Rd2 {[%emt 0:01:54]} 0-1

[Event "DVM U14 2021"]
[Site "Willingen"]
[Date "2022.08.15"]
[Round "6"]
[White "Reus, Nicholas"]
[Black "Eichhorn, Valentin"]
[Result "1-0"]
[ECO "E01"]
[WhiteElo "1663"]
[BlackElo "1506"]
[Annotator "NA RC"]
[PlyCount "61"]
[EventDate "2022.08.12"]
[EventType "team-tourn"]
[EventRounds "7"]
[EventCountry "GER"]
[SourceTitle "playchess.com"]
[Source "ChessBase"]
[SourceQuality "1"]
[TimeControl "40/5400+30:1800+30"]

1. c4 {[%emt 0:00:18]} e6 {[%emt 0:00:00]} 2. g3 {[%emt 0:00:29]} d5 {[%emt 0:00:21]} 3. d4 {[%emt 0:00:49]} Nf6 {[%emt 0:00:12]} 4. Bg2 {[%emt 0:00:39]} c6 {[%emt 0:00:24]} 5. Nf3 {[%emt 0:00:49]} Bd6 {[%emt 0:00:22]} 6. O-O {[%emt 0:01:02]} Nbd7 {[%emt 0:00:55]} 7. Bf4 {[%emt 0:03:03]} Bxf4 {[%emt 0:00:07]} 8. gxf4 {[%emt 0:03:33]} Qc7 {[%emt 0:01:14]} 9. e3 {[%emt 0:01:30]} Ne4 {[%emt 0:02:25]} 10. Nbd2 {[%emt 0:02:08]} Ndf6 {[%emt 0:03:08]} 11. Qc2 {[%emt 0:02:17]} O-O {[%emt 0:03:25]} 12. Nxe4 {[%emt 0:00:52]} Nxe4 {[%emt 0:01:28]} 13. Ne5 {[%emt 0:03:39]} Nf6 {[%emt 0:06:20]} 14. b4 {[%emt 0:06:14]} Qe7 {[%emt 0:05:09]} 15. c5 {[%emt 0:01:27]} Nd7 {[%emt 0:04:42]} 16. a4 {[%emt 0:01:23]} Nxe5 {[%emt 0:00:00]} 17. fxe5 {[%emt 0:00:08]} f6 {[%emt 0:00:10]} 18. exf6 {[%emt 0:00:43]} Qxf6 {[%emt 0:03:23]} 19. f4 {[%emt 0:03:12]} Qh4 {[%emt 0:01:53]} 20. Rf3 {[%emt 0:02:55]} h6 {[%emt 0:01:49]} 21. Rg3 {[%emt 0:03:03]} Qf6 {[%emt 0:02:10]} 22. Bh3 {[%emt 0:02:04]} Kf7 {[%emt 0:02:01]} 23. Kh1 {[%emt 0:01:44]} Bd7 {[%emt 0:01:34]} 24. Rag1 {[%emt 0:01:37]} Rg8 {[%emt 0:03:19]} 25. Qh7 {[%emt 0:01:10]} Rae8 {[%emt 0:00:34]} 26. Rg6 {[%emt 0:03:05]} Qxg6 {[%emt 0:00:15]} 27. Qxg6+ {[%emt 0:00:20]} Ke7 {[%emt 0:01:05]} 28. f5 {[%emt 0:00:13]} Ref8 {[%emt 0:00:37]} 29. fxe6 {[%emt 0:00:05]} Be8 {[%emt 0:01:37]} 30. Qg3 {[%emt 0:00:55]} Bh5 {[%emt 0:00:44]} 31. Qd6+ {[%emt 0:01:16]} 1-0

[Event "DVM U14 2021"]
[Site "Willingen"]
[Date "2022.08.15"]
[Round "6"]
[White "Helmbrecht, Paul"]
[Black "Bungarten, Jona"]
[Result "0-1"]
[ECO "D36"]
[WhiteElo "1661"]
[BlackElo "1834"]
[Annotator "NA RC"]
[PlyCount "108"]
[EventDate "2022.08.12"]
[EventType "team-tourn"]
[EventRounds "7"]
[EventCountry "GER"]
[SourceTitle "playchess.com"]
[Source "ChessBase"]
[SourceQuality "1"]
[TimeControl "40/5400+30:1800+30"]

1. d4 {[%emt 0:00:05]} d5 {[%emt 0:00:00]} 2. c4 {[%emt 0:00:35]} e6 {[%emt 0:00:00]} 3. Nc3 {[%emt 0:00:34]} Nf6 {[%emt 0:00:00]} 4. cxd5 {[%emt 0:00:06]} exd5 {[%emt 0:00:00]} 5. Bg5 {[%emt 0:00:48]} Be7 {[%emt 0:00:00]} 6. e3 {[%emt 0:00:15]} c6 {[%emt 0:00:02]} 7. Bd3 {[%emt 0:00:36]} O-O {[%emt 0:00:05]} 8. Qc2 {[%emt 0:01:00]} h6 {[%emt 0:00:51]} 9. Bh4 {[%emt 0:02:16]} Re8 {[%emt 0:00:35]} 10. Nge2 {[%emt 0:05:25]} Nbd7 {[%emt 0:00:39]} 11. O-O {[%emt 0:01:21]} Ne4 {[%emt 0:02:23]} 12. Bxe7 {[%emt 0:00:06]} Qxe7 {[%emt 0:07:34]} 13. Ng3 {[%emt 0:02:12]} (13. Bxe4 {should be considered.} dxe4 14. Rfd1) 13... Ndf6 {[%emt 0:01:28]} 14. Rab1 {[%emt 0:01:27]} (14. Ngxe4 $11 dxe4 15. Be2) 14... h5 {[%emt 0:07:29]} ({Better is} 14... Nxg3 $1 $15 15. hxg3 Ng4) 15. Ngxe4 {[%emt 0:00:35]} Nxe4 {[%emt 0:00:07]} 16. Nxe4 {[%emt 0:00:07]} dxe4 {[%emt 0:00:17]} 17. Be2 {[%emt 0:03:42]} h4 {[%emt 0:02:05]} 18. Qc5 {[%emt 0:02:46]} Qf6 {[%emt 0:06:48]} 19. Qh5 {[%emt 0:03:47]} Be6 {[%emt 0:01:51]} 20. b3 {[%emt 0:02:38]} Rad8 {[%emt 0:01:43]} 21. g3 {[%emt 0:07:44]} Bh3 {[%emt 0:01:57]} 22. Rfc1 {[%emt 0:04:11]} hxg3 {[%emt 0:04:16]} 23. hxg3 {[%emt 0:07:00]} Be6 {[%emt 0:04:17]} 24. Kg2 {[%emt 0:03:11]} Rd5 {[%emt 0:00:27]} 25. Qh4 {[%emt 0:04:53]} g5 {[%emt 0:00:57]} 26. Qh5 {[%emt 0:00:16]} Rf5 {[%emt 0:00:17]} 27. Rf1 $11 {[%emt 0:00:18]} Kg7 {[%emt 0:01:25]} 28. g4 {[%emt 0:01:47]} Rh8 {[%emt 0:00:38]} 29. Qxh8+ {[%emt 0:00:01]} Kxh8 {[%emt 0:00:19]} 30. Rh1+ {[%emt 0:00:14]} Kg7 {[%emt 0:00:11]} 31. gxf5 {[%emt 0:02:05]} Qxf5 {[%emt 0:06:55]} 32. Rbc1 {[%emt 0:02:09]} Qg6 {[%emt 0:05:52]} 33. Rc5 {[%emt 0:07:29]} f5 {[%emt 0:02:01]} 34. Kf1 {[%emt 0:01:49]} Bd5 {[%emt 0:05:27]} 35. Rc1 {[%emt 0:02:48]} b5 {[%emt 0:07:19]} 36. Ke1 {[%emt 0:01:46]} f4 {[%emt 0:03:36]} 37. Kd2 {[%emt 0:01:05]} f3 {[%emt 0:00:34]} 38. Bd1 {[%emt 0:01:56]} Qd6 {[%emt 0:02:16]} 39. Rc5 {[%emt 0:00:30]} Qd8 {[%emt 0:01:19]} 40. b4 {[%emt 0:06:27]} Bxa2 {[%emt 0:02:34]} 41. Rxc6 {[%emt 0:30:37]} Qd7 {[%emt 0:30:38]} 42. Rhh6 {[%emt 0:02:04]} Bf7 {[%emt 0:02:26]} 43. Bb3 {[%emt 0:01:25]} Bxb3 {[%emt 0:00:10]} 44. Rcg6+ {[%emt 0:00:11]} Kf8 {[%emt 0:01:55]} 45. Rh8+ {[%emt 0:00:11]} Ke7 {[%emt 0:00:28]} 46. Rg7+ {[%emt 0:00:13]} Bf7 {[%emt 0:00:32]} 47. Rhh7 {[%emt 0:00:11]} Qd5 {[%emt 0:00:58]} 48. Ke1 {[%emt 0:00:24]} Qa2 {[%emt 0:00:44]} 49. Rxf7+ {[%emt 0:00:02]} Qxf7 {[%emt 0:00:07]} 50. Rxf7+ {[%emt 0:00:04]} Kxf7 {[%emt 0:00:36]} 51. Kf1 {[%emt 0:00:02]} Ke6 {[%emt 0:00:04]} 52. Kg1 {[%emt 0:00:03]} Kd5 {[%emt 0:00:04]} 53. Kh2 {[%emt 0:00:06]} Kc4 {[%emt 0:00:03]} 54. Kg3 {[%emt 0:00:05]} Kxb4 0-1

[Event "DVM U14 2021"]
[Site "Willingen"]
[Date "2022.08.15"]
[Round "6"]
[White "Hoffmann, Kay"]
[Black "Krüger, Arthur"]
[Result "1-0"]
[ECO "D02"]
[WhiteElo "1653"]
[BlackElo "1996"]
[Annotator "NA RC"]
[PlyCount "68"]
[EventDate "2022.08.12"]
[EventType "team-tourn"]
[EventRounds "7"]
[EventCountry "GER"]
[SourceTitle "playchess.com"]
[Source "ChessBase"]
[SourceQuality "1"]
[TimeControl "40/5400+30:1800+30"]

1. d4 {[%emt 0:00:02]} d5 {[%emt 0:00:09]} 2. Bf4 {[%emt 0:00:09]} Nf6 {[%emt 0:00:29]} 3. e3 {[%emt 0:00:22]} c5 {[%emt 0:00:23]} 4. c3 {[%emt 0:00:18]} Nc6 {[%emt 0:00:35]} 5. Nf3 {[%emt 0:00:07]} Qb6 {[%emt 0:00:37]} 6. Qc2 {[%emt 0:00:08]} Bf5 {[%emt 0:00:46]} 7. dxc5 {[%emt 0:00:09]} Bxc2 {[%emt 0:01:48]} 8. cxb6 {[%emt 0:00:06]} Bxb1 {[%emt 0:03:34]} 9. Rxb1 {[%emt 0:00:15]} axb6 {[%emt 0:00:10]} 10. a3 {[%emt 0:02:01]} e6 {[%emt 0:06:55]} 11. Bb5 {[%emt 0:02:59]} Nd7 {[%emt 0:04:45]} 12. Nd4 {[%emt 0:03:11]} Rc8 {[%emt 0:04:02]} 13. Nxc6 {[%emt 0:04:13]} bxc6 {[%emt 0:00:20]} 14. Ba6 {[%emt 0:00:23]} Rd8 {[%emt 0:00:29]} 15. Bb7 {[%emt 0:00:23]} e5 {[%emt 0:14:46]} 16. Bg3 {[%emt 0:01:16]} Nb8 {[%emt 0:00:32]} 17. Bxe5 {[%emt 0:02:53]} Kd7 $16 {[%emt 0:05:20]} 18. c4 {[%emt 0:06:50]} Bd6 {[%emt 0:22:02]} 19. Bxg7 {[%emt 0:07:26]} Rhg8 {[%emt 0:01:57]} 20. Bf6 {[%emt 0:00:22]} Kc7 {[%emt 0:00:28]} 21. Bxd8+ {[%emt 0:00:22]} Rxd8 {[%emt 0:00:02]} 22. Bxc6 {[%emt 0:01:14]} Kxc6 {[%emt 0:00:49]} 23. Rc1 {[%emt 0:00:53]} Nd7 {[%emt 0:04:39]} 24. Ke2 {[%emt 0:04:58]} dxc4 {[%emt 0:02:25]} 25. Rxc4+ {[%emt 0:00:09]} Kd5 {[%emt 0:00:18]} 26. Rd4+ {[%emt 0:03:44]} Ke6 {[%emt 0:00:42]} 27. f4 {[%emt 0:04:36]} Bc5 {[%emt 0:02:52]} 28. Re4+ {[%emt 0:01:19]} Kf5 {[%emt 0:01:15]} 29. Kf3 {[%emt 0:01:13]} Kg6 {[%emt 0:00:41]} 30. b4 {[%emt 0:05:01]} Bf8 {[%emt 0:01:53]} 31. Rd4 {[%emt 0:02:38]} Kf6 {[%emt 0:01:20]} 32. Rhd1 {[%emt 0:01:13]} Ke6 {[%emt 0:00:23]} 33. g4 {[%emt 0:02:04]} Bg7 {[%emt 0:00:47]} 34. Re4+ {[%emt 0:00:57]} Be5 {[%emt 0:01:27]} 1-0

[Event "DVM U14 2021"]
[Site "Willingen"]
[Date "2022.08.15"]
[Round "6"]
[White "Martin Fernandez, Rafael"]
[Black "Vecera, Fabio"]
[Result "1-0"]
[ECO "B03"]
[WhiteElo "1645"]
[BlackElo "1527"]
[Annotator "NA RC"]
[PlyCount "74"]
[EventDate "2022.08.12"]
[EventType "team-tourn"]
[EventRounds "7"]
[EventCountry "GER"]
[SourceTitle "playchess.com"]
[Source "ChessBase"]
[SourceQuality "1"]
[TimeControl "40/5400+30:1800+30"]

1. e4 {[%emt 0:00:08]} Nf6 {[%emt 0:00:00]} 2. e5 {[%emt 0:00:08]} Nd5 {[%emt 0:00:00]} 3. c4 {[%emt 0:00:06]} Nb6 {[%emt 0:00:03]} 4. d4 {[%emt 0:00:13]} d6 {[%emt 0:00:30]} 5. f4 {[%emt 0:00:18]} dxe5 {[%emt 0:00:10]} 6. fxe5 {[%emt 0:00:09]} c5 {[%emt 0:02:47]} 7. d5 {[%emt 0:00:15]} e6 {[%emt 0:05:13]} 8. Nc3 {[%emt 0:23:09]} a6 {[%emt 0:03:48]} 9. Be2 {[%emt 0:06:48]} exd5 {[%emt 0:00:41]} 10. cxd5 {[%emt 0:00:28]} Qh4+ {[%emt 0:01:47]} 11. g3 {[%emt 0:00:52]} Qd4 {[%emt 0:00:41]} 12. Nf3 {[%emt 0:00:20]} Qxd1+ {[%emt 0:00:11]} 13. Bxd1 {[%emt 0:00:21]} Be7 {[%emt 0:03:14]} 14. a4 {[%emt 0:18:15]} a5 {[%emt 0:03:45]} 15. Kf2 {[%emt 0:03:00]} O-O {[%emt 0:05:27]} 16. Be2 {[%emt 0:11:21]} Na6 {[%emt 0:02:26]} 17. Bxa6 {[%emt 0:00:18]} bxa6 {[%emt 0:06:44]} 18. b3 {[%emt 0:06:52]} Bb7 {[%emt 0:03:52]} 19. Rd1 {[%emt 0:06:20]} Rfe8 {[%emt 0:05:04]} 20. Bf4 {[%emt 0:03:16]} Rac8 {[%emt 0:02:11]} 21. d6 {[%emt 0:00:07]} Bd8 {[%emt 0:00:09]} 22. d7 {[%emt 0:01:00]} Nxd7 {[%emt 0:01:04]} 23. Rxd7 {[%emt 0:04:35]} Bxf3 {[%emt 0:00:18]} 24. Kxf3 {[%emt 0:00:15]} g5 {[%emt 0:01:11]} 25. Be3 {[%emt 0:00:08]} Rxe5 {[%emt 0:00:10]} 26. Rad1 {[%emt 0:00:29]} Bf6 {[%emt 0:01:26]} 27. Nd5 {[%emt 0:01:15]} Rc6 {[%emt 0:01:51]} 28. Nxf6+ {[%emt 0:00:05]} Rxf6+ {[%emt 0:00:11]} 29. Ke2 {[%emt 0:04:10]} Rb6 {[%emt 0:01:17]} 30. R1d5 {[%emt 0:01:39]} Ree6 {[%emt 0:01:33]} 31. Rxg5+ {[%emt 0:00:07]} Kf8 {[%emt 0:02:54]} 32. Rd3 {[%emt 0:00:48]} c4 {[%emt 0:00:47]} 33. bxc4 {[%emt 0:00:36]} Rb2+ {[%emt 0:00:35]} 34. Rd2 {[%emt 0:00:09]} Rb3 {[%emt 0:00:16]} 35. Rd3 {[%emt 0:00:09]} Rb2+ {[%emt 0:00:06]} 36. Kf3 {[%emt 0:01:09]} f6 {[%emt 0:01:53]} 37. Rh5 Rb4 {[%emt 0:36:44]} 1-0

[Event "DVM U14 2021"]
[Site "Willingen"]
[Date "2022.08.15"]
[Round "6"]
[White "Aravindan, Midhulan"]
[Black "Schwartz, Oliver"]
[Result "1/2-1/2"]
[ECO "B50"]
[WhiteElo "1642"]
[BlackElo "1872"]
[Annotator "NA RC"]
[PlyCount "60"]
[EventDate "2022.08.12"]
[EventType "team-tourn"]
[EventRounds "7"]
[EventCountry "GER"]
[SourceTitle "playchess.com"]
[Source "ChessBase"]
[SourceQuality "1"]
[TimeControl "40/5400+30:1800+30"]

1. e4 {[%emt 0:00:06]} c5 {[%emt 0:00:00]} 2. b3 {[%emt 0:06:23]} d6 {[%emt 0:00:00]} 3. Bb2 {[%emt 0:01:38]} Nc6 {[%emt 0:07:09]} 4. Nc3 {[%emt 0:03:45]} Nf6 {[%emt 0:04:08]} 5. Nf3 {[%emt 0:03:05]} g6 {[%emt 0:03:34]} 6. Nd5 {[%emt 0:00:23]} Bg7 {[%emt 0:04:17]} 7. Bc4 {[%emt 0:09:13]} O-O {[%emt 0:06:33]} 8. Nxf6+ {[%emt 0:00:21]} exf6 {[%emt 0:03:48]} 9. O-O {[%emt 0:09:07]} Re8 {[%emt 0:06:45]} 10. Re1 {[%emt 0:02:35]} f5 {[%emt 0:00:54]} 11. Bxg7 {[%emt 0:00:06]} Kxg7 {[%emt 0:03:36]} 12. d3 {[%emt 0:11:06]} Ne5 {[%emt 0:01:52]} 13. Nxe5 {[%emt 0:01:44]} dxe5 {[%emt 0:04:39]} 14. Qf3 {[%emt 0:04:35]} Qc7 {[%emt 0:06:41]} 15. exf5 {[%emt 0:02:14]} Bxf5 {[%emt 0:02:18]} 16. g4 {[%emt 0:00:48]} Be6 $11 {[%emt 0:04:52]} 17. g5 {[%emt 0:07:35]} Bxc4 {[%emt 0:00:48]} 18. bxc4 {[%emt 0:02:18]} Rad8 {[%emt 0:02:35]} 19. Re4 {[%emt 0:10:18]} Rd4 {[%emt 0:07:30]} 20. Rae1 {[%emt 0:04:05]} Rxe4 {[%emt 0:03:18]} 21. Rxe4 {[%emt 0:01:04]} Qe7 {[%emt 0:03:48]} 22. Qe3 {[%emt 0:02:14]} b6 {[%emt 0:01:37]} 23. f4 {[%emt 0:04:05]} Qd7 {[%emt 0:04:47]} 24. fxe5 {[%emt 0:00:41]} Qa4 {[%emt 0:01:42]} 25. Qf2 {[%emt 0:00:45]} Qxa2 {[%emt 0:01:16]} 26. Qf6+ {[%emt 0:00:12]} Kg8 {[%emt 0:01:22]} 27. Rf4 {[%emt 0:00:28]} Qa1+ {[%emt 0:09:50]} 28. Kf2 {[%emt 3:11:34]} Qxe5 {[%emt 0:00:06]} 29. Qxf7+ {[%emt 0:00:02]} Kh8 30. Qf6+ {[%emt 0:00:24]} Kg8 {[%emt 0:00:01]} 1/2-1/2

[Event "DVM U14 2021"]
[Site "Willingen"]
[Date "2022.08.15"]
[Round "6"]
[White "Gold, Jan Christian"]
[Black "Fettig, Michel"]
[Result "1/2-1/2"]
[ECO "D35"]
[WhiteElo "1638"]
[BlackElo "1370"]
[Annotator "NA RC"]
[PlyCount "66"]
[EventDate "2022.08.12"]
[EventType "team-tourn"]
[EventRounds "7"]
[EventCountry "GER"]
[SourceTitle "playchess.com"]
[Source "ChessBase"]
[SourceQuality "1"]
[TimeControl "40/5400+30:1800+30"]

1. d4 {[%emt 0:00:18]} d5 {[%emt 0:00:00]} 2. c4 {[%emt 0:00:09]} e6 {[%emt 0:00:00]} 3. Nf3 {[%emt 0:00:39]} Nf6 {[%emt 0:00:05]} 4. Bf4 {[%emt 0:03:41]} c6 {[%emt 0:00:29]} 5. e3 {[%emt 0:04:57]} Bd6 {[%emt 0:01:59]} 6. Bxd6 {[%emt 0:01:31]} Qxd6 {[%emt 0:00:07]} 7. Nc3 {[%emt 0:08:45]} Nbd7 {[%emt 0:00:16]} 8. Rc1 {[%emt 0:01:47]} e5 {[%emt 0:03:44]} 9. cxd5 {[%emt 0:02:24]} cxd5 {[%emt 0:00:18]} 10. dxe5 {[%emt 0:00:11]} Nxe5 {[%emt 0:01:42]} 11. Nxe5 {[%emt 0:00:21]} Qxe5 {[%emt 0:00:05]} 12. Bb5+ {[%emt 0:01:40]} Kf8 {[%emt 0:01:51]} 13. O-O {[%emt 0:02:08]} g6 {[%emt 0:08:08]} 14. Be2 {[%emt 0:06:46]} Kg7 {[%emt 0:07:29]} 15. Bf3 {[%emt 0:06:16]} Be6 {[%emt 0:04:27]} 16. Qb3 {[%emt 0:06:34]} b6 {[%emt 0:02:39]} 17. Nb5 {[%emt 0:08:23]} Bd7 {[%emt 0:11:47]} 18. Rfd1 {[%emt 0:04:06]} Bxb5 {[%emt 0:00:37]} 19. Qxb5 {[%emt 0:01:52]} Rhd8 {[%emt 0:01:22]} 20. Rc2 {[%emt 0:00:53]} Rd7 {[%emt 0:08:09]} 21. e4 {[%emt 0:03:06]} Rad8 {[%emt 0:01:01]} 22. exd5 {[%emt 0:05:51]} g5 {[%emt 0:01:22]} 23. h3 {[%emt 0:02:19]} h6 {[%emt 0:02:00]} 24. Rcd2 {[%emt 0:01:00]} Rd6 {[%emt 0:03:27]} 25. Qb3 {[%emt 0:08:46]} R8d7 {[%emt 0:03:32]} 26. Qa4 {[%emt 0:01:01]} Kg6 {[%emt 0:05:08]} 27. g3 {[%emt 0:01:12]} Qf5 {[%emt 0:00:50]} 28. Kg2 {[%emt 0:05:41]} h5 {[%emt 0:00:29]} 29. g4 {[%emt 0:00:54]} hxg4 {[%emt 0:00:02]} 30. hxg4 {[%emt 0:02:29]} Qe5 {[%emt 0:01:32]} 31. Re2 {[%emt 0:00:42]} Qf4 {[%emt 0:00:53]} 32. Qxf4 {[%emt 0:00:18]} gxf4 {[%emt 0:02:07]} 33. Red2 {[%emt 0:03:42]} Kg5 {[%emt 3:02:38]} 1/2-1/2

[Event "DVM U14 2021"]
[Site "Willingen"]
[Date "2022.08.15"]
[Round "6"]
[White "Chugunov, Ivan"]
[Black "Bolz, Jannis"]
[Result "1-0"]
[ECO "B15"]
[WhiteElo "1630"]
[BlackElo "1616"]
[Annotator "NA RC"]
[PlyCount "65"]
[EventDate "2022.08.12"]
[EventType "team-tourn"]
[EventRounds "7"]
[EventCountry "GER"]
[SourceTitle "playchess.com"]
[Source "ChessBase"]
[SourceQuality "1"]
[TimeControl "40/5400+30:1800+30"]

1. e4 {[%emt 0:00:07]} c6 {[%emt 0:00:15]} 2. d4 {[%emt 0:00:28]} d5 {[%emt 0:00:06]} 3. Nc3 {[%emt 0:00:17]} dxe4 {[%emt 0:00:15]} 4. Nxe4 {[%emt 0:00:11]} Nf6 {[%emt 0:00:07]} 5. Nxf6+ {[%emt 0:00:15]} exf6 {[%emt 0:00:11]} 6. Bc4 {[%emt 0:02:15]} Bd6 {[%emt 0:02:33]} 7. Qe2+ {[%emt 0:00:17]} Qe7 {[%emt 0:00:24]} 8. Qxe7+ {[%emt 0:00:20]} Bxe7 {[%emt 0:00:11]} 9. c3 {[%emt 0:01:24]} O-O {[%emt 0:00:35]} 10. Bf4 {[%emt 0:00:29]} Bf5 {[%emt 0:07:05]} 11. O-O-O {[%emt 0:01:39]} Nd7 {[%emt 0:00:42]} 12. Ne2 {[%emt 0:00:41]} b5 {[%emt 0:00:45]} 13. Bb3 {[%emt 0:01:50]} Nb6 {[%emt 0:08:38]} 14. Ng3 {[%emt 0:03:47]} Bg6 {[%emt 0:09:42]} 15. Rhe1 {[%emt 0:01:12]} Rfe8 {[%emt 0:01:41]} 16. Ne4 {[%emt 0:03:08]} Nd5 {[%emt 0:06:21]} 17. Bg3 {[%emt 0:04:48]} Rad8 {[%emt 0:29:29]} 18. Nd6 {[%emt 0:08:46]} Bxd6 {[%emt 0:01:23]} 19. Bxd6 {[%emt 0:01:00]} h6 {[%emt 0:16:32]} 20. Bg3 {[%emt 0:06:03]} b4 {[%emt 0:05:51]} 21. Kd2 {[%emt 0:03:42]} bxc3+ {[%emt 0:01:32]} 22. bxc3 {[%emt 0:00:32]} Re6 {[%emt 0:00:45]} 23. a3 {[%emt 0:13:41]} Kf8 {[%emt 0:01:36]} 24. c4 {[%emt 0:01:41]} Nb6 {[%emt 0:00:16]} 25. Kc3 {[%emt 0:01:48]} Rd7 {[%emt 0:02:12]} 26. f3 {[%emt 0:07:05]} Rde7 {[%emt 0:02:02]} 27. a4 {[%emt 0:02:44]} a5 {[%emt 0:00:12]} 28. Rxe6 {[%emt 0:03:21]} Rxe6 {[%emt 0:00:21]} 29. Kd2 {[%emt 0:02:13]} Na8 {[%emt 0:02:01]} 30. c5 {[%emt 0:03:59]} Re8 {[%emt 0:00:05]} 31. Bd6+ {[%emt 0:00:37]} Kg8 {[%emt 0:00:06]} 32. Re1 {[%emt 0:00:45]} Rc8 {[%emt 0:01:16]} 33. Re7 {[%emt 0:00:29]} 1-0